Cogmind - Beta 13 X1 @@@ ROGUE MODE // 2024.02.06 @ 14:51:53 Player: maxwell Result: Destroyed by H-61 Shepherd with Heavy Assault Cannon Performance ------------- Evolutions (2) 1000 Regions Visited (7) 1400 Robots Destroyed (96) 480 Value Destroyed (2166) 2166 Prototype IDs (8) 160 Alien Tech Used (0) 0 Bonus (41) 41 TOTAL SCORE: 5247 Bonus ------- High Alert Combat Kills 34 Follower Combat Kills 7 Cogmind --------- Core Integrity 0/550 Matter 260/300 Energy 310/310 System Corruption 0% Temperature Cool (0) Movement Walking (260) Ox2 Location -8/Materials Parts ------- > --- POWER (1) -------- Reinforced Fission Core > --- PROPULSION (4) --- Advanced Myomer Leg > --- UTILITY (3) ------ High-capacity Storage Unit Transmission Jammer > --- WEAPON (3) ------- Scythe Scythe Scythe > --- INVENTORY (20) --- Experimental Heat Sink High-capacity Matter Pod (200) Improved Sensor Array Improved Signal Interpreter Advanced Terrain Scan Processor Experimental Targeting Computer Advanced Launcher Guidance Computer Advanced Weapon Cycler Authchip [Device] System Purifier AS-neutralizer No. 17b 8R-AWN's Boregun Missile Launcher Missile Launcher Powered Hammer Powered Hammer Powered Hammer Powered Hammer Peak State ------------ > --- POWER ------------ Reinforced Fission Core > --- PROPULSION ------- Carbon-fiber Leg Improved Carbon-fiber Leg Advanced Myomer Leg Advanced Myomer Leg > --- UTILITY ---------- High-capacity Storage Unit Transmission Jammer Improved Light Armor Plating > --- WEAPON ----------- Scythe Scythe Scythe > --- INVENTORY -------- Experimental Heat Sink High-capacity Matter Pod Improved Sensor Array Improved Signal Interpreter Advanced Terrain Scan Processor Experimental Targeting Computer Advanced Launcher Guidance Computer Advanced Weapon Cycler Authchip [Device] System Purifier AS-neutralizer No. 17b 8R-AWN's Boregun Missile Launcher Missile Launcher Powered Hammer Powered Hammer Powered Hammer Powered Hammer [Rating: 55] Favorites ----------- Power Improved Ion Engine Engine Improved Ion Engine Power Core Reinforced Fission Core Propulsion Light Treads Treads Light Treads Leg Improved Carbon-fiber Leg Utility High-capacity Storage Unit Device Improved Heat Sink Storage High-capacity Storage Unit Processor Salvage Targeting Computer Hackware Hacking Suite Protection Improved Light Armor Plating Weapon Autogun Energy Gun Medium Laser Ballistic Gun Autogun Launcher Grenade Launcher Impact Weapon Powered Hammer Slashing Weapon Scythe Build | -11 -10 -10 -9 -9 -9 -8 -8 ------- Run | Jun Mat Min Mat Min Exi Min Mat Slots Evolved 4 | . . . 2 . . . 2 Power . | . . . . . . . . Propulsion 2 | . . . 1 . . . 1 Utility 1 | . . . . . . . 1 Weapon 1 | . . . 1 . . . . Parts Attached 96 | . 23 8 20 2 24 . 19 Power 6 | . 1 1 2 . 2 . . Engine 5 | . 1 1 2 . 1 . . Core 1 | . . . . . 1 . . Reactor . | . . . . . . . . Propulsion 24 | . 2 3 6 . 4 . 9 Treads 16 | . 2 3 6 . 4 . 1 Leg 8 | . . . . . . . 8 Wheel . | . . . . . . . . Hover . | . . . . . . . . Flight . | . . . . . . . . Utility 23 | . 7 1 3 . 8 . 4 Device 8 | . 1 . 1 . 4 . 2 Storage 7 | . 6 1 . . . . . Processor 2 | . . . . . 2 . . Hackware 1 | . . . . . . . 1 Protection 5 | . . . 2 . 2 . 1 Artifact . | . . . . . . . . Weapon 43 | . 13 3 9 2 10 . 6 Energy Gun 9 | . 8 1 . . . . . Energy Cannon . | . . . . . . . . Ballistic Gun 18 | . . 2 7 1 8 . . Ballistic Cannon . | . . . . . . . . Launcher 10 | . 5 . 2 1 2 . . Special Weapon . | . . . . . . . . Impact Weapon 3 | . . . . . . . 3 Slashing Weapon 3 | . . . . . . . 3 Piercing Weapon . | . . . . . . . . Special Melee Weapon . | . . . . . . . . Unidentified Prototypes 7 | . . . . . 6 . 1 Corrupted Parts 2 | . . 2 . . . . . System Corruption 19 | . . 19 . . . . . Parts Lost 22 | . 2 5 1 . 7 . 7 Power 3 | . 1 1 . . 1 . . Propulsion 11 | . . 3 . . 3 . 5 Utility 3 | . . . 1 . . . 2 Weapon 5 | . 1 1 . . 3 . . Highest Loss Streak 4 | . 1 3 1 . 3 . 4 To Critical Strikes 3 | . . . . . 3 . . Average Slot Usage (%) 97 | . 94 99 99 100 98 100 93 Engine 10 | . 13 14 11 11 9 . . Core 1 | . . . . . . 11 9 Treads 27 | . 27 28 33 33 33 33 5 Leg 3 | . . . . . . . 29 Device 4 | . . 13 6 . 1 . 3 Storage 13 | . 22 14 11 11 11 11 9 Protection 4 | . . . 4 11 4 11 8 Energy Gun 8 | . 22 27 . . . . . Ballistic Gun 17 | . . . 32 32 32 33 5 Launcher 1 | . 5 . . . . . . Impact Weapon 1 | . . . . . . . 12 Naked Turns . | . . . . . . . . Heaviest Build 89 | 11 89 50 59 62 73 73 74 Greatest Support 93 | 20 40 40 60 60 60 60 93 Greatest Overweight (x) 2 | . 2 1 . 1 1 1 2 Average Overweight (x) . | . . 1 . . . 1 . Largest Inventory Capacity 25 | . 25 20 20 20 20 20 20 Average Capacity 18 | . 13 20 20 20 20 20 20 Most Carried 20 | . 16 17 20 20 20 20 20 Average Carried 16 | . 10 15 19 20 15 20 17 Final Capacity 20 | 8 20 20 20 20 20 20 20 Final Carried 20 | 6 16 12 20 20 20 20 18 Class Distribution -------------------- 40% | Mutant 39% | Tank 7% | Gunner 6% | Scavenger-Mutant 4% | Scavenger-Gunner Dominant Class ---------------- Mutant | -10/Materials Mutant | -10/Mines Tank | -9/Materials Tank | -9/Mines Tank | -9/Exiles Tank | -8/Mines Mutant | -8/Materials Resources | -11 -10 -10 -9 -9 -9 -8 -8 ----------- Run | Jun Mat Min Mat Min Exi Min Mat Matter Collected 3163 | 200 369 109 949 42 1080 . 414 Remotely . | . . . . . . . . Salvage Created 3294 | . 473 115 1416 16 545 . 729 Parts 257 | . 43 4 108 2 73 . 27 Haulers Intercepted 7 | . 2 . 3 . . . 2 Recyclers Shooed 2 | . 2 . . . . . . Parts Field Recycled . | . . . . . . . . Retrieved Matter . | . . . . . . . . Parts Self-Destructed . | . . . . . . . . Prevented . | . . . . . . . . Kills | -11 -10 -10 -9 -9 -9 -8 -8 ------- Run | Jun Mat Min Mat Min Exi Min Mat Combat Hostiles Destroyed 65 | . 11 7 29 2 2 . 14 Melee 6 | . . . . . . . 6 Guns 36 | . 3 7 24 . 2 . . AOE 15 | . 8 . 5 2 . . . Classes Destroyed 13 | . 7 1 2 . 2 . 1 Worker 4 | . 1 . . 2 . . 1 Tunneler 1 | . 1 . . . . . . Hauler 7 | . 2 . 3 . . . 2 Recycler 2 | . 1 . 1 . . . . Operator 4 | . . . 2 . . . 2 Turret 1 | . . . . . 1 . . Watcher 8 | . 3 . 4 . . . 1 Swarmer 22 | . 6 3 8 2 . . 3 Grunt 21 | . 5 . 11 . . . 5 Sentry 14 | . . . 10 . . . 4 Hunter 2 | . . . . . . . 2 Zionite 7 | . . . . . 7 . . Assembled 5 | . . 4 . . 1 . . Best Kill Streak 9 | . 9 3 6 3 4 . 7 Combat Bots Only 7 | . 7 3 6 2 2 . 4 Max Kills in Single Turn 5 | . 3 1 5 1 1 . 1 Gunslinging 1 | . . . 1 . . . . Exploded 5 | . 3 . 5 1 . . . Melee 1 | . . . . . . . 1 Uniques/NPCs Destroyed 4 | . . . . . 4 . . 8R-AWN (-9/Exiles) EX-BIN (-9/Exiles) EX-HEX (-9/Exiles) EX-DEC (-9/Exiles) Combat | -11 -10 -10 -9 -9 -9 -8 -8 -------- Run | Jun Mat Min Mat Min Exi Min Mat Damage Taken 4565 | . 237 530 719 10 1141 . 1928 Core 1002 | . 30 88 116 . 215 . 553 Absorbed by Shields 77 | . . . 77 . . . . Core Remaining (%) 56 | 100 . 52 . . . 17 . Volleys Fired 205 | . 27 25 77 3 71 . 2 Largest 3 | . 2 2 3 1 3 . 3 Hottest 100 | . 80 100 69 36 69 . 69 Shots Fired 524 | . 43 52 227 3 193 . 6 Gun 499 | . 32 52 225 . 184 . 6 Cannon . | . . . . . . . . Launcher 25 | . 11 . 2 3 9 . . Special . | . . . . . . . . Kinetic 415 | . . . 225 . 184 . 6 Thermal 52 | . . 52 . . . . . Explosive 25 | . 11 . 2 3 9 . . Electromagnetic 32 | . 32 . . . . . . Robot Hit Streak 19 | . 6 7 19 17 18 . 5 Robot Miss Streak 6 | . 3 3 6 . 4 . 1 Penetration Max . | . . . . . . . . Secondary Targets 8 | . 1 1 5 . 1 . . Max Gunslinging Chain 1 | . 1 1 1 . 1 . . Shots Hit Robots 389 | . 21 31 150 1 116 . 70 Core Hits 162 | . 27 14 65 4 40 . 12 Critical Kills 3 | . . . . . . . 3 Critical Parts Destroyed 6 | . . . 2 . 1 . 3 Critical Strikes 13 | . . 4 2 . 1 . 6 Burn 4 | . . 4 . . . . . Destroy 3 | . . . 2 . 1 . . Smash 6 | . . . . . . . 6 Melee Attacks 84 | . . . . . . . 84 Impact 62 | . . . . . . . 62 Slashing 22 | . . . . . . . 22 Piercing . | . . . . . . . . Sneak Attacks 4 | . . . . . . . 4 Combat Hostiles . | . . . . . . . . Follow-up Attacks 12 | . . . . . . . 12 Damage Inflicted 8749 | . 1009 404 2292 262 2174 . 2608 Guns 4585 | . 304 404 2036 . 1808 . 33 Cannons . | . . . . . . . . Explosions 1513 | . 680 . 243 224 366 . . Melee 2575 | . . . . . . . 2575 Ramming 76 | . 25 . 13 38 . . . Kinetic 3877 | . . . 2036 . 1808 . 33 Thermal 578 | . 174 404 . . . . . Explosive 1339 | . 506 . 243 224 366 . . Electromagnetic 304 | . 304 . . . . . . Impact 2332 | . . . . . . . 2332 Slashing 243 | . . . . . . . 243 Piercing . | . . . . . . . . Highest Corruption 22 | . . 22 . . 4 . . Average Corruption 2 | . . 3 . . 2 . . Corruption Purged 4 | . . . . . 4 . . Corruption Blocked . | . . . . . . . . Effects 25 | . . 21 . . 4 . . Message Errors 5 | . . 4 . . 1 . . Matter Fused 4 | . . 4 . . . . . Heat Flow Errors 8 | . . 8 . . . . . Data Loss (minor) 3 | . . 2 . . 1 . . Data Loss (major) 1 | . . 1 . . . . . Misfires 3 | . . 2 . . 1 . . Weapon Failures 1 | . . . . . 1 . . Overload Shots . | . . . . . . . . Overflow Damage 684 | . 39 . . 16 . . 629 Projectiles . | . . . . . . . . Explosions 55 | . 39 . . 16 . . . Melee 629 | . . . . . . . 629 Knockbacks 3 | . . . . 1 . . 2 Impact 3 | . . . . 1 . . 2 Kinetic . | . . . . . . . . Secondary . | . . . . . . . . Self-Inflicted Damage 76 | . 76 . . . . . . Shots 3 | . 3 . . . . . . Rammed 9 | . 5 . 1 3 . . . Targets Rammed 10 | . 5 . 1 4 . . . Kicked . | . . . . . . . . Crushed 1 | . . . . 1 . . . Highest Temperature 297 | . 150 297 135 . 204 . 52 Average Temperature 54 | . 45 106 38 . 64 . 25 Received Heat Transfer 703 | . 78 60 223 . . . 342 Siege Activations . | . . . . . . . . Robots Corrupted . | . . . . . . . . Combat Hostiles . | . . . . . . . . Parts Fried 10 | . . . . . . . 10 Impact Corruptions 21 | . . . . . . . 21 Robots Melted . | . . . . . . . . Combat Hostiles . | . . . . . . . . Parts Melted 2 | . 1 1 . . . . . Heat Transferred 1630 | . 150 1480 . . . . . Parts Sabotaged . | . . . . . . . . Parts Stolen . | . . . . . . . . Parts Stripped . | . . . . . . . . Power Chain Reactions 3 | . 3 . . . . . . Missiles Intercepted . | . . . . . . . . Alert | -11 -10 -10 -9 -9 -9 -8 -8 ------- Run | Jun Mat Min Mat Min Exi Min Mat Peak Influence 536 | . 310 70 536 180 . . 374 Initial 175 | . . . . 175 . . . Average 89 | . 66 16 152 104 . . 135 Maximum Alert Level 2 | . 1 . 2 . . . 1 Low Security (%) 88 | . 94 100 79 100 . 100 69 Level 1 9 | . 5 . 12 . . . 30 Level 2 2 | . . . 8 . . . . Level 3 . | . . . . . . . . Level 4 . | . . . . . . . . Level 5 . | . . . . . . . . High Security . | . . . . . . . . Max Security . | . . . . . . . . Squads Dispatched 6 | . 1 . 2 . . . 3 Investigation 3 | . 1 . . . . . 2 Extermination . | . . . . . . . . Reinforcement 3 | . . . 2 . . . 1 Assault . | . . . . . . . . Garrison . | . . . . . . . . Intercept . | . . . . . . . . Searches Triggered . | . . . . . . . . Construction Impeded . | . . . . . . . . Haulers Reinforced . | . . . . . . . . Active Scanning Responses . | . . . . . . . . Cargo Convoy Interrupts . | . . . . . . . . Stealth | -11 -10 -10 -9 -9 -9 -8 -8 --------- Run | Jun Mat Min Mat Min Exi Min Mat Distress Signals 4 | . . . 2 . . . 2 Communications Jammed 16 | . . . . . . . 16 Distress Signals . | . . . . . . . . Times Spotted 113 | . 11 8 35 1 35 . 23 Peak Tracking Total 8 | . 3 2 6 3 8 . 5 Tactical Retreats 11 | . . . . . 10 . 1 Traps | -11 -10 -10 -9 -9 -9 -8 -8 ------- Run | Jun Mat Min Mat Min Exi Min Mat Traps Triggered 3 | . 1 . 1 . . . 1 Indirectly . | . . . . . . . . Trap Hack Attempts . | . . . . . . . . Triggered . | . . . . . . . . Disarmed . | . . . . . . . . Reprogrammed . | . . . . . . . . Reused . | . . . . . . . . Traps Extracted . | . . . . . . . . Installed . | . . . . . . . . Triggered . | . . . . . . . . Machines | -11 -10 -10 -9 -9 -9 -8 -8 ---------- Run | Jun Mat Min Mat Min Exi Min Mat Machines Disabled 19 | . 1 . 2 3 13 . . Max in Single Turn 2 | . 1 . 1 1 2 . . Machines Repaired . | . . . . . . . . Machines Sabotaged . | . . . . . . . . Overloaded Fab Kills . | . . . . . . . . Hacking | -11 -10 -10 -9 -9 -9 -8 -8 --------- Run | Jun Mat Min Mat Min Exi Min Mat Machines Accessed 14 | . 5 . 4 . 1 . 4 Terminals 9 | . 3 . 3 . . . 3 Fabricators . | . . . . . . . . Repair Stations . | . . . . . . . . Recycling Units 3 | . 2 . 1 . . . . Scanalyzers 1 | . . . . . . . 1 Garrison Access . | . . . . . . . . Total Hacks 33 | . 12 . 7 . 1 . 13 Successful 20 | . 6 . 3 . 1 . 10 Failed 13 | . 6 . 4 . . . 3 Catastrophic 1 | . . . 1 . . . . Database Lockouts . | . . . . . . . . Manual 18 | . 4 . 7 . . . 7 Terminals 23 | . 7 . 6 . . . 10 Fabricators . | . . . . . . . . Repair Stations . | . . . . . . . . Recycling Units 6 | . 5 . 1 . . . . Scanalyzers 3 | . . . . . . . 3 Garrison Access . | . . . . . . . . Terminal Hacks 9 | . 4 . . . 1 . 4 Record 1 | . . . . . 1 . . Part Schematic 1 | . . . . . . . 1 Robot Analysis 4 | . 4 . . . . . . Branch Access Points 1 | . . . . . . . 1 Alert Level 1 | . . . . . . . 1 Unreport Threat 1 | . . . . . . . 1 Fabricator Hacks . | . . . . . . . . Repair Station Hacks . | . . . . . . . . Recycling Unit Hacks 2 | . 2 . . . . . . Retrieve Components 2 | . 2 . . . . . . Scanalyzer 2 | . . . . . . . 2 Insert Component 2 | . . . . . . . 2 Garrison Access Hacks . | . . . . . . . . Unauthorized Hacks 7 | . . . 3 . . . 4 Terminals 6 | . . . 2 . . . 4 Botnet 3 | . . . . . . . 3 Disrupt 2 | . . . 2 . . . . Operators 1 | . . . . . . . 1 Fabricators . | . . . . . . . . Repair Stations . | . . . . . . . . Recycling Units 1 | . . . 1 . . . . Reject 1 | . . . 1 . . . . Scanalyzers . | . . . . . . . . Garrison Access . | . . . . . . . . Data Cores Recovered 2 | . . . . . . . 2 Used 1 | . . . . . . . 1 Hacking Detections 9 | . 4 . 2 . . . 3 Full Trace Events . | . . . . . . . . Feedback Events . | . . . . . . . . Feedback Blocked . | . . . . . . . . Robot Schematics Acquired . | . . . . . . . . Robots Built . | . . . . . . . . Authchips . | . . . . . . . . Time . | . . . . . . . . Total Robot Build Rating . | . . . . . . . . Part Schematics Acquired 1 | . . . . . . . 1 Parts Built . | . . . . . . . . Authchips . | . . . . . . . . Time . | . . . . . . . . Total Part Build Rating . | . . . . . . . . Parts Repaired . | . . . . . . . . Time . | . . . . . . . . Parts Recycled . | . . . . . . . . Recycled Matter . | . . . . . . . . Retrieved Matter . | . . . . . . . . Retrieved Components 12 | . 12 . . . . . . Parts Scanalyzed 1 | . . . . . . . 1 Part Schematics Acquired . | . . . . . . . . Parts Damaged 1 | . . . . . . . 1 Bothacking | -11 -10 -10 -9 -9 -9 -8 -8 ------------ Run | Jun Mat Min Mat Min Exi Min Mat Used RIF Installer . | . . . . . . . . Robots Hacked . | . . . . . . . . Non-combat . | . . . . . . . . Combat . | . . . . . . . . Robot Hacks Applied . | . . . . . . . . Relay Couplers Released . | . . . . . . . . Fabnet Peak Effective % . | . . . . . . . . Robots Rewired . | . . . . . . . . Allies Hacked . | . . . . . . . . Hacks Repelled . | . . . . . . . . Allies | -11 -10 -10 -9 -9 -9 -8 -8 -------- Run | Jun Mat Min Mat Min Exi Min Mat Total Allies 3 | . . 1 . 2 . . . Largest Group 2 | . . 1 . 2 2 . . Highest-Rated Group 41 | . . 31 . 41 41 . . Highest-Rated Ally 31 | . . 31 . 31 31 . . Total Orders . | . . . . . . . . Ally Attacks 2 | . . . . 2 . . . Total Damage 22 | . . . . 22 . . . Kills 1 | . . . . 1 . . . Allies Corrupted . | . . . . . . . . Allies Melted . | . . . . . . . . Intel | -11 -10 -10 -9 -9 -9 -8 -8 ------- Run | Jun Mat Min Mat Min Exi Min Mat Robot Analysis Total 4 | . 4 . . . . . . Derelict Logs Recovered 2 | . . 1 . 1 . . . Drone Launches . | . . . . . . . . Drone Recoveries . | . . . . . . . . Exploration | -11 -10 -10 -9 -9 -9 -8 -8 ------------- Run | Jun Mat Min Mat Min Exi Min Mat Turns Passed 8757 | . 1667 1465 1617 903 1863 176 1066 Spaces Moved 4260 | 1 893 558 774 549 843 74 568 Core . | . . . . . . . . Treads 3772 | . 878 558 774 549 843 74 96 Legs 488 | 1 15 . . . . . 472 Wheels . | . . . . . . . . Hover . | . . . . . . . . Flight . | . . . . . . . . Fastest Speed 120 | 120 120 240 160 160 160 240 120 Average Speed 172 | 120 170 240 160 160 165 240 140 Slowest Speed 320 | 120 320 240 160 240 240 240 260 Overloaded Moves . | . . . . . . . . Propulsion Burnouts . | . . . . . . . . Robots Hopped . | . . . . . . . . Cave-ins Triggered . | . . . . . . . . Exploration Rate (%) 63 | 2 94 99 83 98 77 17 40 Regions Visited 7 Branch Regions 4 Pre-discovered Areas 2 | . . 1 . . 1 . . Known Exits Taken . | . . . . . . . . Unknown Exits Taken 7 | 1 1 1 1 1 1 1 . Scrap Searched 5 | . . 1 . 4 . . . Spaces Dug 23 | . 14 . 7 . . . 2 Terrain Destroyed 98 | . 64 . 20 12 . . 2 Melee 2 | . . . . . . . 2 Projectile . | . . . . . . . . AOE 96 | . 64 . 20 12 . . . Terrain Rammed . | . . . . . . . . Walls Destroyed . | . . . . . . . . Machines Disabled . | . . . . . . . . Actions | -11 -10 -10 -9 -9 -9 -8 -8 --------- Run | Jun Mat Min Mat Min Exi Min Mat Total 5218 | . 985 636 1047 563 1203 73 711 Wait 420 | . 12 39 110 6 229 . 24 Move 4253 | . 892 557 773 548 842 73 568 Hop . | . . . . . . . . Pick Up 86 | . 18 4 35 . 17 . 12 Fast Attach 19 | . 2 . 2 . 7 . 8 Attach 43 | . 7 8 9 . 12 . 7 Detach 8 | . 1 . 1 . 5 . 1 Swap 34 | . 14 . 9 2 5 . 4 Drop 69 | . 7 3 30 . 15 . 14 Fire 205 | . 27 25 77 3 71 . 2 Melee 71 | . . . . . . . 71 Ram . | . . . . . . . . Kick . | . . . . . . . . Crush 10 | . 5 . 1 4 . . . Escape Stasis . | . . . . . . . . Rewire . | . . . . . . . . Trap . | . . . . . . . . Miscellaneous . | . . . . . . . . Route ------- -11/Junkyard -10/Materials (discovered 5 exits: *Mat x3 / [*Min x2]) -10/Mines (discovered 3 exits: *Mat x2 / [*Sub]) -9/Materials (discovered 5 exits: *Mat x3 / [*Min x2]) -9/Mines (discovered 3 exits: *Mat x2 / *Exi) -9/Exiles (discovered 2 exits: [*Min x2]) -8/Mines -8/Materials (discovered 1 exit: [*Fac]) History --------- Turn | Location | Event 1 | -11/Junkyard | Discovered new exit (range 0) 1 | -11/Junkyard | Entered Materials 301 | -10/Materials | Build established: Mutant 310 | -10/Materials | Discovered new exit (range 15) 339 | -10/Materials | Destroyed 7 combat bots 785 | -10/Materials | Discovered new exit (range 15) 1097 | -10/Materials | Discovered new exit (range 9) 1144 | -10/Materials | Discovered new exit (range 6) 1254 | -10/Materials | Discovered new exit (range 16) 1668 | -10/Materials | Entered Mines 1712 | -10/Mines | Discovered new exit (range 12) 1817 | -10/Mines | Assembled infested the area 2146 | -10/Mines | Learned location of Zion (-6) 2323 | -10/Mines | A weapon hastily lodged in a ceiling crevice suddenly fell to the ground 2341 | -10/Mines | Lost 3 parts (1p1n1w) 2382 | -10/Mines | Discovered new exit (range 8) 2390 | -10/Mines | Received a Mining Laser from a helpful Derelict 2499 | -10/Mines | Discovered new exit (range 10) 3132 | -10/Mines | System corruption reached 10% 3133 | -10/Mines | Entered Materials 3133 | -9/Materials | Evolved 2 slots: Propulsion x1, Weapon x1 3457 | -9/Materials | Build established: Tank 3915 | -9/Materials | Discovered new exit (range 15) 4237 | -9/Materials | Discovered new exit (range 15) 4530 | -9/Materials | Discovered new exit (range 16) 4600 | -9/Materials | Discovered new exit (range 16) 4744 | -9/Materials | Discovered new exit (range 5) 4750 | -9/Materials | Entered Mines 4913 | -9/Mines | Discovered new exit (range 9) 4956 | -9/Mines | Discovered new exit (range 5) 5179 | -9/Mines | Learned Materials emergency access door positions 5345 | -9/Mines | Deemed a non-threat by the Exiles lab entrance 5345 | -9/Mines | Discovered new exit (range 5) 5653 | -9/Mines | Entered Exiles 5653 | -9/Exiles | Accompanied by 2 allies 5677 | -9/Exiles | Discovered new exit (range 15) 5683 | -9/Exiles | Led the pair of lost Derelicts to a safe place 5697 | -9/Exiles | Met 8R-AWN 5719 | -9/Exiles | Met EX-HEX 5786 | -9/Exiles | Met EX-DEC 5841 | -9/Exiles | Discovered new exit (range 14) 6317 | -9/Exiles | Attacked by the Exiles 6463 | -9/Exiles | Core integrity fell below 50% 6477 | -9/Exiles | Destroyed 8R-AWN 6491 | -9/Exiles | Found Prototype Ballistic Gun 6666 | -9/Exiles | Destroyed EX-BIN 6716 | -9/Exiles | Destroyed EX-HEX 6888 | -9/Exiles | Core integrity fell below 20% 6918 | -9/Exiles | Build established: Gunner 6922 | -9/Exiles | Lost 3 parts (1p1n1w) 6955 | -9/Exiles | Destroyed EX-DEC 6985 | -9/Exiles | Found Prototype Device 6985 | -9/Exiles | Identified System Purifier 7160 | -9/Exiles | Found Prototype Processor 7160 | -9/Exiles | Identified Exp. Core Analyzer 7276 | -9/Exiles | Build established: Scavenger-Gunner 7373 | -9/Exiles | Found Prototype Protection 7383 | -9/Exiles | Found Prototype Device 7383 | -9/Exiles | Identified AS-neutralizer No. 17b 7413 | -9/Exiles | Found Prototype Processor 7516 | -9/Exiles | Entered Mines 7581 | -8/Mines | Discovered new exit (range 9) 7692 | -8/Mines | Entered Materials 7692 | -8/Materials | Evolved 2 slots: Propulsion x1, Utility x1 8007 | -8/Materials | Identified Exp. Targeting Computer 8213 | -8/Materials | Discovered new exit (range 16) 8222 | -8/Materials | Build established: Mutant 8564 | -8/Materials | Build established: Scavenger-Mutant 8718 | -8/Materials | Core integrity fell below 50% 8738 | -8/Materials | Core integrity fell below 20% 8753 | -8/Materials | Lost 4 parts (3n1u) 8758 | -8/Materials | Destroyed by H-61 Shepherd with Heavy Assault Cannon Last Messages --------------- 08722_ Carbon-fiber Leg destroyed. 08722_ Knocked back. 08725_ H-61 Shepherd call for reinforcements jammed. 08727_ Knocked back. 08730_ Scythe follow-up attack on H-61 Shepherd. 08730_ H-61 Shepherd call for reinforcements jammed. 08732_ Knocked back. 08735_ H-61 Shepherd call for reinforcements jammed. 08737_ Knocked back. 08741_ H-61 Shepherd call for reinforcements jammed. 08743_ Knocked back. 08746_ H-61 Shepherd call for reinforcements jammed. 08748_ Knocked back. 08751_ Scythe follow-up attack on H-61 Shepherd. 08751_ H-61 Shepherd call for reinforcements jammed. 08753_ Scythe follow-up attack on H-61 Shepherd. 08755_ H-61 Shepherd call for reinforcements jammed. 08756_ U-05 Engineer builds a Wall. 08756_ Scythe follow-up attack on H-61 Shepherd. 08757_ H-61 Shepherd call for reinforcements jammed. Map ----- +----------------------------------------------------+ | ????????????????????# #?????# """ #?????????????? | | ????????#############%####### """ #?????????????? | | ????#??"""""" + % % + """ #?????????????? | | ????# """"""" # #### #?????????????? | | ????# """"""" # #??########?????????????? | | ????# """"""" / #???????????????????????? | | ????# """"""" ########## #???????????????????????? | | ????# #????????# #???????????????????????? | | ????# ! =#????????# #???????????????????????? | | ????# % #????????#+#???????????????????????? | | #########+############? ???????????????????????? | | + #= #?"T"???????????????????????? | | # # * # ??????????????????????? | | """ # # #! ??????????????????????? | | """"" + + """ """ ###+###?????????????????????? | | """"" # # """ """?????????????????????????????? | | """"" # # """ ""??????????????????????????????? | | """ # # ??????????????????????????????? | | # # ! ??????????????????????????????? | | ######## #########?????????????????????????????? | | T" # #???????????###??#????????????????????? | | ** # #############;## #????????????????????? | | = ** # # # # #????????????????????? | | * # # !! # %; #??????#?????????????? | | ##+##### # !! # % # #??? /#?????????????? | | #= ! # @# ## #?????????????? | | + "S # ]H +?????????????? | | #*""" # %% #### #?????????????? | | # "" = # ##??? #?????+???????? | | """ """ # # !! #??????###?????????????? | | """ """ ######## ## #??????????????????????? | | """ """ #??????#######+#??????????????????????? | | #????????????# #??????????????????????? | | = #????????????# #??????????????????????? | | #????????????# #??????????????????????? | | #######+#######?????????# #??????????????????????? | | ?????# #?????????#+#??????????????????????? | | #????# #?????????###??????????????????????? | | #????# "#?????????????????????????????????? | | #????# ##?????????????????????????????????? | | #????# #??????????????????????????????????? | | #????# #??????????????????????????????????? | | #????# #??????????????????????????????????? | | #????# [ [ #??????????????????????????????????? | | #????# #??????????????????????????????????? | | ?????##########??????????????????????????????????? | | ?????????????????????????????????????????????????? | | ?????????????????????????????????????????????????? | | ?????????????????????????????????????????????????? | | ####?????????????????????????????????????????????? | +----------------------------------------------------+ Best States ------------- Heat Dissipation 39 Energy Generation 19 Energy Capacity 310 Matter Stores 400 Matter Capacity 400 Sight Range 16 Terrain Scan Density 10 Jamming Range 12 Armor Coverage 150 Weapon Cycling 25 Evasion (%) 55 Core Analysis 8 Recoil Reduction 4 Salvage Targeting 1 Offensive Hacking 10 Authchip Count 1 Item Schematics ----------------- Lrg. Storage Unit | -8/Materials | Hacked Robot Schematics ------------------ None Fabricated ------------ Nothing Alien Tech Used ----------------- None Achievements -------------- None Challenges ------------ None Game ------ Seed HugeReinforcedMachine Manual? 0 Play Time 00:31:22 Cumulative 384.1 hours Start 2024.02.06 @ 14:20:52 End 2024.02.06 @ 14:51:53 Sessions 1 Manual Loads 0 Difficulty Rogue Special Mode None Game No. 564 Rogue 537 Adventurer 4 Explorer 23 Win Type - Total 21 Types 14/0/3/2/1/0/0/1/0 Lore% 81 Gallery% 92 Achievement% 83 Wizard Run 0 Options --------- ASCII 0 Keyboard 1 Movement Numpad Keybinds 0 Fullscreen 2 Font 18/SmallcapsGlow Map View 76x50 Tactical HUD 1 Map Filters NONE Filters NONE Steam 1 RUN: 66353995-a757-4cf3-9c7c-06ec7ba3d433